[Event "Late-Titled-Tuesday-Blitz-September-19-2023"]
[Site "Chess.com"]
[Date "2023.09.19"]
[Round "7"]
[White "KVAIDAN"]
[Black "Botvinnak"]
[Result "0-1"]
[WhiteElo "2242"]
[BlackElo "2327"]
[TimeControl "180+1"]
[EndTime "15:09:47 PDT"]
[Termination "Botvinnak won by resignation"]

1. f4 {[%clk 0:02:57.1]} 1... b6 {[%clk 0:02:56.5]} 2. Nf3 {[%clk 0:02:56.3]}
2... Bb7 {[%clk 0:02:57.1]} 3. d3 {[%clk 0:02:56.7]} 3... d5 {[%clk 0:02:56.5]}
4. e4 {[%clk 0:02:57.2]} 4... dxe4 {[%clk 0:02:56.8]} 5. dxe4 {[%clk 0:02:56.9]}
5... Qxd1+ {[%clk 0:02:57.5]} 6. Kxd1 {[%clk 0:02:57.4]} 6... Bxe4 {[%clk
0:02:58.2]} 7. Ne5 {[%clk 0:02:57.8]} 7... e6 {[%clk 0:02:56.2]} 8. Bb5+ {[%clk
0:02:55.4]} 8... c6 {[%clk 0:02:56.4]} 9. Nc3 {[%clk 0:02:54.3]} 9... cxb5
{[%clk 0:02:54.4]} 10. Nxe4 {[%clk 0:02:48.5]} 10... Nf6 {[%clk 0:02:54.4]} 11.
Nc3 {[%clk 0:02:46.4]} 11... a6 {[%clk 0:02:54.2]} 12. Be3 {[%clk 0:02:45.3]}
12... Bc5 {[%clk 0:02:53.5]} 13. Ke2 {[%clk 0:02:40.8]} 13... Nbd7 {[%clk
0:02:53.4]} 14. Nxd7 {[%clk 0:02:38.9]} 14... Nxd7 {[%clk 0:02:53]} 15. Ne4
{[%clk 0:02:39.4]} 15... O-O {[%clk 0:02:49.6]} 16. Rhd1 {[%clk 0:02:39.1]}
16... Rfd8 {[%clk 0:02:49.2]} 17. c3 {[%clk 0:02:34.4]} 17... Kf8 {[%clk
0:02:49]} 18. g4 {[%clk 0:02:32.1]} 18... Ke7 {[%clk 0:02:48.6]} 19. h4 {[%clk
0:02:29.6]} 19... Rac8 {[%clk 0:02:48.4]} 20. f5 {[%clk 0:02:28.9]} 20... exf5
{[%clk 0:02:47.8]} 21. gxf5 {[%clk 0:02:27.9]} 21... Bxe3 {[%clk 0:02:48.2]} 22.
Kxe3 {[%clk 0:02:25.4]} 22... Nf6 {[%clk 0:02:48.5]} 23. Ng5 {[%clk 0:02:24.1]}
23... h6 {[%clk 0:02:48.1]} 0-1

[Event "Late-Titled-Tuesday-Blitz-September-19-2023"]
[Site "Chess.com"]
[Date "2023.09.19"]
[Round "7"]
[White "whiteglovethief"]
[Black "eCztery"]
[Result "1-0"]
[WhiteElo "2522"]
[BlackElo "2403"]
[TimeControl "180+1"]
[EndTime "15:10:57 PDT"]
[Termination "whiteglovethief won by checkmate"]

1. d4 {[%clk 0:03:00.9]} 1... Nf6 {[%clk 0:02:56.2]} 2. c4 {[%clk 0:03:00.8]}
2... e5 {[%clk 0:02:37.9]} 3. dxe5 {[%clk 0:02:59.8]} 3... Ng4 {[%clk
0:02:38.5]} 4. Nh3 {[%clk 0:02:59.5]} 4... Nxe5 {[%clk 0:02:35.4]} 5. e3 {[%clk
0:03:00]} 5... Nbc6 {[%clk 0:02:35.3]} 6. Nf4 {[%clk 0:02:58.7]} 6... Bc5 {[%clk
0:02:30.7]} 7. Be2 {[%clk 0:02:57.9]} 7... O-O {[%clk 0:02:30.8]} 8. O-O {[%clk
0:02:57.8]} 8... d6 {[%clk 0:02:31.2]} 9. a3 {[%clk 0:02:56.7]} 9... a5 {[%clk
0:02:31.5]} 10. Nc3 {[%clk 0:02:57.1]} 10... Ba7 {[%clk 0:02:22]} 11. Nfd5
{[%clk 0:02:54.2]} 11... Ne7 {[%clk 0:02:18.4]} 12. f4 {[%clk 0:02:51.5]} 12...
N5g6 {[%clk 0:02:16]} 13. Kh1 {[%clk 0:02:51.5]} 13... Nxd5 {[%clk 0:02:15.6]}
14. cxd5 {[%clk 0:02:50.6]} 14... f5 {[%clk 0:02:04.2]} 15. e4 {[%clk
0:02:48.6]} 15... fxe4 {[%clk 0:02:02.4]} 16. Nxe4 {[%clk 0:02:48.4]} 16... Bf5
{[%clk 0:01:55.2]} 17. Ng5 {[%clk 0:02:45.9]} 17... Qf6 {[%clk 0:01:45.4]} 18.
Bd3 {[%clk 0:02:43.3]} 18... Bxd3 {[%clk 0:01:04]} 19. Qxd3 {[%clk 0:02:44.2]}
19... Ne5 {[%clk 0:01:04.7]} 20. Qxh7# {[%clk 0:02:39.7]} 1-0

[Event "Late-Titled-Tuesday-Blitz-September-19-2023"]
[Site "Chess.com"]
[Date "2023.09.19"]
[Round "7"]
[White "dretch"]
[Black "amanmuhammethommadov"]
[Result "1-0"]
[WhiteElo "2854"]
[BlackElo "2578"]
[TimeControl "180+1"]
[EndTime "15:11:56 PDT"]
[Termination "dretch won by resignation"]

1. d4 {[%clk 0:03:00.9]} 1... Nf6 {[%clk 0:03:00]} 2. c4 {[%clk 0:03:00.7]} 2...
g6 {[%clk 0:03:00.5]} 3. Nc3 {[%clk 0:03:01]} 3... Bg7 {[%clk 0:03:01]} 4. e4
{[%clk 0:03:01.5]} 4... d6 {[%clk 0:03:01.3]} 5. Nf3 {[%clk 0:03:02.1]} 5... O-O
{[%clk 0:03:01.9]} 6. h3 {[%clk 0:03:02]} 6... e5 {[%clk 0:03:01.4]} 7. dxe5
{[%clk 0:03:02.4]} 7... dxe5 {[%clk 0:03:01.7]} 8. Qxd8 {[%clk 0:03:03.3]} 8...
Rxd8 {[%clk 0:03:02.6]} 9. Bg5 {[%clk 0:03:03.8]} 9... Re8 {[%clk 0:03:02.2]}
10. Nd5 {[%clk 0:03:04]} 10... Nxd5 {[%clk 0:03:02.3]} 11. cxd5 {[%clk
0:03:04.9]} 11... c6 {[%clk 0:03:02.2]} 12. Bc4 {[%clk 0:03:05.6]} 12... cxd5
{[%clk 0:03:02.1]} 13. Bxd5 {[%clk 0:03:06.5]} 13... Nd7 {[%clk 0:03:02.8]} 14.
Nd2 {[%clk 0:03:07.1]} 14... Nf6 {[%clk 0:03:03]} 15. Bb3 {[%clk 0:02:59.8]}
15... Be6 {[%clk 0:03:03.1]} 16. Ke2 {[%clk 0:02:59.6]} 16... Rad8 {[%clk
0:03:00.7]} 17. Rhc1 {[%clk 0:02:56.5]} 17... Rd7 {[%clk 0:02:38.6]} 18. Bxe6
{[%clk 0:02:53.7]} 18... Rxe6 {[%clk 0:02:39.5]} 19. Rc8+ {[%clk 0:02:53.5]}
19... Re8 {[%clk 0:02:27.7]} 20. Rac1 {[%clk 0:02:52.6]} 20... Kf8 {[%clk
0:02:01.3]} 21. Rxe8+ {[%clk 0:02:37.2]} 21... Kxe8 {[%clk 0:01:48.5]} 22. Rc5
{[%clk 0:02:37.1]} 22... Re7 {[%clk 0:01:13.9]} 23. Nc4 {[%clk 0:02:28.7]} 23...
b6 {[%clk 0:00:56.9]} 24. Rc6 {[%clk 0:02:25.2]} 24... Kd7 {[%clk 0:00:49.6]}
25. Bxf6 {[%clk 0:02:21.6]} 1-0

[Event "Late-Titled-Tuesday-Blitz-September-19-2023"]
[Site "Chess.com"]
[Date "2023.09.19"]
[Round "7"]
[White "protectiago"]
[Black "jcmesafischer"]
[Result "0-1"]
[WhiteElo "2076"]
[BlackElo "2365"]
[TimeControl "180+1"]
[EndTime "15:12:10 PDT"]
[Termination "jcmesafischer won by resignation"]

1. d4 {[%clk 0:03:00.9]} 1... Nf6 {[%clk 0:02:59]} 2. c4 {[%clk 0:03:00.8]} 2...
e6 {[%clk 0:02:58.5]} 3. g3 {[%clk 0:02:57.9]} 3... Be7 {[%clk 0:02:56.2]} 4.
Bg2 {[%clk 0:02:57.8]} 4... O-O {[%clk 0:02:56]} 5. Nf3 {[%clk 0:02:58.2]} 5...
d5 {[%clk 0:02:55.8]} 6. O-O {[%clk 0:02:57.6]} 6... dxc4 {[%clk 0:02:56]} 7.
Nbd2 {[%clk 0:02:57.6]} 7... b5 {[%clk 0:02:54.1]} 8. a4 {[%clk 0:02:41.9]} 8...
c6 {[%clk 0:02:52.8]} 9. axb5 {[%clk 0:02:39]} 9... cxb5 {[%clk 0:02:53.7]} 10.
Ne5 {[%clk 0:02:37.6]} 10... Nd5 {[%clk 0:02:52.6]} 11. e4 {[%clk 0:02:30.1]}
11... Nb4 {[%clk 0:02:44.6]} 12. Ndf3 {[%clk 0:02:06.9]} 12... Bb7 {[%clk
0:02:34.1]} 13. Bd2 {[%clk 0:01:57.6]} 13... Bxe4 {[%clk 0:02:17.9]} 14. Bg5
{[%clk 0:01:31.7]} 14... f6 {[%clk 0:01:48.7]} 15. Qe1 {[%clk 0:01:24.4]} 15...
Bd5 {[%clk 0:01:42.8]} 16. Bd2 {[%clk 0:01:07.4]} 16... Nc2 {[%clk 0:01:40.2]}
0-1

[Event "Late-Titled-Tuesday-Blitz-September-19-2023"]
[Site "Chess.com"]
[Date "2023.09.19"]
[Round "7"]
[White "Dubs123"]
[Black "szachmistrz2500"]
[Result "1-0"]
[WhiteElo "2330"]
[BlackElo "2487"]
[TimeControl "180+1"]
[EndTime "15:12:18 PDT"]
[Termination "Dubs123 won by resignation"]

1. d4 {[%clk 0:02:59.5]} 1... Nf6 {[%clk 0:02:58.5]} 2. c4 {[%clk 0:02:58.1]}
2... e6 {[%clk 0:02:58.2]} 3. Nc3 {[%clk 0:02:58]} 3... d5 {[%clk 0:02:54.2]} 4.
cxd5 {[%clk 0:02:58.1]} 4... exd5 {[%clk 0:02:53.7]} 5. Bg5 {[%clk 0:02:57.5]}
5... c6 {[%clk 0:02:52]} 6. e3 {[%clk 0:02:57.2]} 6... Be7 {[%clk 0:02:46.1]} 7.
Bd3 {[%clk 0:02:56.8]} 7... Nbd7 {[%clk 0:02:44.7]} 8. Nge2 {[%clk 0:02:56.4]}
8... Nf8 {[%clk 0:02:39.8]} 9. O-O {[%clk 0:02:53.6]} 9... Ng6 {[%clk
0:02:35.1]} 10. Nf4 {[%clk 0:02:46.5]} 10... Nxf4 {[%clk 0:02:29.4]} 11. Bxf4
{[%clk 0:02:47.4]} 11... Bd6 {[%clk 0:02:28.7]} 12. Qf3 {[%clk 0:02:42.3]} 12...
Bxf4 {[%clk 0:02:25.1]} 13. Qxf4 {[%clk 0:02:41.7]} 13... O-O {[%clk 0:02:26]}
14. Rad1 {[%clk 0:02:35.7]} 14... Be6 {[%clk 0:02:25.1]} 15. f3 {[%clk
0:02:33.9]} 15... Qb6 {[%clk 0:02:20.5]} 16. b3 {[%clk 0:02:18.2]} 16... Nd7
{[%clk 0:02:19.5]} 17. Bb1 {[%clk 0:02:10.1]} 17... Rfd8 {[%clk 0:02:13.6]} 18.
e4 {[%clk 0:01:53.6]} 18... Nf8 {[%clk 0:02:10.3]} 19. e5 {[%clk 0:01:48.4]}
19... c5 {[%clk 0:02:09.6]} 20. Na4 {[%clk 0:01:47.9]} 20... Qa5 {[%clk
0:02:04.1]} 21. Nxc5 {[%clk 0:01:46]} 21... Rab8 {[%clk 0:02:02]} 22. Qd2 {[%clk
0:01:44.2]} 22... Qb5 {[%clk 0:01:58.7]} 23. f4 {[%clk 0:01:41.9]} 23... b6
{[%clk 0:01:57.6]} 24. Nxe6 {[%clk 0:01:40.4]} 24... fxe6 {[%clk 0:01:55.6]} 25.
f5 {[%clk 0:01:39.4]} 25... exf5 {[%clk 0:01:54.9]} 26. Bxf5 {[%clk 0:01:38.9]}
26... Qe8 {[%clk 0:01:54.5]} 27. Qg5 {[%clk 0:01:29.5]} 27... Rb7 {[%clk
0:01:52.9]} 28. Bb1 {[%clk 0:01:24.5]} 28... Qe7 {[%clk 0:01:50.4]} 29. Qh5
{[%clk 0:01:19.2]} 29... g6 {[%clk 0:01:48.9]} 30. Qg4 {[%clk 0:01:18.2]} 30...
Ne6 {[%clk 0:01:46]} 31. Rf6 {[%clk 0:01:16.5]} 31... Rf8 {[%clk 0:01:44.5]} 32.
Qxe6+ {[%clk 0:01:14.8]} 1-0

[Event "Late-Titled-Tuesday-Blitz-September-19-2023"]
[Site "Chess.com"]
[Date "2023.09.19"]
[Round "7"]
[White "BeanScreen"]
[Black "Harald_Schmidt"]
[Result "1-0"]
[WhiteElo "2701"]
[BlackElo "2332"]
[TimeControl "180+1"]
[EndTime "15:12:30 PDT"]
[Termination "BeanScreen won by checkmate"]

1. e4 {[%clk 0:03:00.9]} 1... c5 {[%clk 0:02:59]} 2. c3 {[%clk 0:03:00.8]} 2...
Nf6 {[%clk 0:02:57]} 3. e5 {[%clk 0:03:00.9]} 3... Nd5 {[%clk 0:02:56.7]} 4. Nf3
{[%clk 0:03:00.9]} 4... e6 {[%clk 0:02:55.3]} 5. d4 {[%clk 0:03:00.6]} 5... cxd4
{[%clk 0:02:54.8]} 6. cxd4 {[%clk 0:03:01.5]} 6... b6 {[%clk 0:02:54.6]} 7. Bc4
{[%clk 0:03:00.2]} 7... Bb7 {[%clk 0:02:53.7]} 8. Bxd5 {[%clk 0:03:00.2]} 8...
Bxd5 {[%clk 0:02:52.9]} 9. Nc3 {[%clk 0:03:00.5]} 9... Bb7 {[%clk 0:02:52]} 10.
O-O {[%clk 0:02:37.4]} 10... d5 {[%clk 0:02:45.4]} 11. exd6 {[%clk 0:02:36.9]}
11... Bxd6 {[%clk 0:02:44.5]} 12. d5 {[%clk 0:02:36.5]} 12... exd5 {[%clk
0:02:27.6]} 13. Re1+ {[%clk 0:02:36]} 13... Kf8 {[%clk 0:02:21.7]} 14. Bg5
{[%clk 0:01:52.8]} 14... Qd7 {[%clk 0:02:21]} 15. Qd4 {[%clk 0:01:24.3]} 15...
Bc5 {[%clk 0:02:15.1]} 16. Qh4 {[%clk 0:01:20.8]} 16... h6 {[%clk 0:02:10.9]}
17. Ne5 {[%clk 0:01:07.9]} 17... Qf5 {[%clk 0:02:08.9]} 18. Be3 {[%clk 0:00:32]}
18... d4 {[%clk 0:01:41.2]} 19. Qd8# {[%clk 0:00:31.3]} 1-0

[Event "Late-Titled-Tuesday-Blitz-September-19-2023"]
[Site "Chess.com"]
[Date "2023.09.19"]
[Round "7"]
[White "Heinza9"]
[Black "TEREZANA"]
[Result "0-1"]
[WhiteElo "2301"]
[BlackElo "2483"]
[TimeControl "180+1"]
[EndTime "15:12:41 PDT"]
[Termination "TEREZANA won by resignation"]

1. e4 {[%clk 0:03:00.9]} 1... c6 {[%clk 0:02:55.9]} 2. d4 {[%clk 0:03:00.3]}
2... d5 {[%clk 0:02:56.3]} 3. exd5 {[%clk 0:03:00.6]} 3... cxd5 {[%clk
0:02:56.2]} 4. c4 {[%clk 0:03:00.9]} 4... Nf6 {[%clk 0:02:55.8]} 5. Nc3 {[%clk
0:03:01.2]} 5... Nc6 {[%clk 0:02:54.6]} 6. Bg5 {[%clk 0:03:01.2]} 6... Be6
{[%clk 0:02:50.4]} 7. a3 {[%clk 0:03:00.6]} 7... Qd7 {[%clk 0:02:47.8]} 8. Nf3
{[%clk 0:02:58.6]} 8... Ne4 {[%clk 0:02:45.5]} 9. Nxe4 {[%clk 0:02:57.3]} 9...
dxe4 {[%clk 0:02:46.4]} 10. d5 {[%clk 0:02:52.5]} 10... exf3 {[%clk 0:02:44.8]}
11. dxe6 {[%clk 0:02:52.7]} 11... Qxe6+ {[%clk 0:02:44.3]} 12. Be3 {[%clk
0:02:52.9]} 12... Rd8 {[%clk 0:02:41]} 13. Qa4 {[%clk 0:02:48.1]} 13... f5
{[%clk 0:02:25]} 14. g3 {[%clk 0:01:57.3]} 14... g5 {[%clk 0:02:15.6]} 15. h4
{[%clk 0:01:26.5]} 15... f4 {[%clk 0:02:10.5]} 16. gxf4 {[%clk 0:01:26.4]} 16...
gxf4 {[%clk 0:02:09.2]} 17. Bh3 {[%clk 0:01:26.6]} 17... Qe5 {[%clk 0:02:09.7]}
18. Rd1 {[%clk 0:01:18.3]} 18... fxe3 {[%clk 0:02:01.9]} 19. Rxd8+ {[%clk
0:01:18]} 19... Kxd8 {[%clk 0:02:02.8]} 20. Qd1+ {[%clk 0:01:09.2]} 20... Nd4
{[%clk 0:01:45.4]} 21. fxe3 {[%clk 0:01:05.5]} 21... Qxe3+ {[%clk 0:01:46.3]}
22. Kf1 {[%clk 0:01:05.8]} 22... Qe2+ {[%clk 0:01:39]} 23. Qxe2 {[%clk
0:01:05.4]} 23... fxe2+ {[%clk 0:01:39.9]} 24. Kf2 {[%clk 0:01:04.5]} 24... e5
{[%clk 0:01:36.3]} 25. Bg2 {[%clk 0:01:04.3]} 25... Bh6 {[%clk 0:01:32.9]} 26.
Be4 {[%clk 0:01:00.5]} 26... Rf8+ {[%clk 0:01:28.5]} 0-1

[Event "Late-Titled-Tuesday-Blitz-September-19-2023"]
[Site "Chess.com"]
[Date "2023.09.19"]
[Round "7"]
[White "UGgm_Manuel"]
[Black "Dacean99"]
[Result "0-1"]
[WhiteElo "2303"]
[BlackElo "2491"]
[TimeControl "180+1"]
[EndTime "15:12:52 PDT"]
[Termination "Dacean99 won by resignation"]

1. e4 {[%clk 0:03:00.9]} 1... d6 {[%clk 0:03:00.2]} 2. d4 {[%clk 0:02:58.6]}
2... Nf6 {[%clk 0:03:00.6]} 3. Nc3 {[%clk 0:02:58.6]} 3... g6 {[%clk 0:03:01.2]}
4. g3 {[%clk 0:02:58.7]} 4... Bg7 {[%clk 0:03:01.7]} 5. Bg2 {[%clk 0:02:59.3]}
5... O-O {[%clk 0:03:02.2]} 6. Nge2 {[%clk 0:02:58.8]} 6... e5 {[%clk
0:03:02.7]} 7. O-O {[%clk 0:02:58.7]} 7... Nc6 {[%clk 0:03:00.7]} 8. h3 {[%clk
0:02:55.8]} 8... exd4 {[%clk 0:02:57]} 9. Nxd4 {[%clk 0:02:54.4]} 9... Nxe4
{[%clk 0:02:47.6]} 10. Nxc6 {[%clk 0:02:51.9]} 10... Nxc3 {[%clk 0:02:46.8]} 11.
Nxd8 {[%clk 0:02:48.6]} 11... Nxd1 {[%clk 0:02:45.5]} 12. Nxb7 {[%clk
0:02:39.1]} 12... Bxb7 {[%clk 0:02:36]} 13. Rxd1 {[%clk 0:02:25]} 13... Bxg2
{[%clk 0:02:34.4]} 14. Kxg2 {[%clk 0:02:25.9]} 14... Rab8 {[%clk 0:02:34.6]} 15.
Rb1 {[%clk 0:02:24.1]} 15... Rfe8 {[%clk 0:02:34.4]} 16. Kf1 {[%clk 0:02:22.1]}
16... a5 {[%clk 0:02:28.5]} 17. b3 {[%clk 0:02:20.3]} 17... a4 {[%clk
0:02:28.1]} 18. Bb2 {[%clk 0:02:17.7]} 18... axb3 {[%clk 0:02:27]} 19. axb3
{[%clk 0:02:13.4]} 19... Bxb2 {[%clk 0:02:22.1]} 20. Rxb2 {[%clk 0:02:11.5]}
20... Re5 {[%clk 0:02:22.3]} 21. c4 {[%clk 0:02:08.4]} 21... f5 {[%clk
0:02:22.1]} 22. b4 {[%clk 0:02:04.1]} 22... Kf7 {[%clk 0:02:20.8]} 23. c5 {[%clk
0:01:59]} 23... dxc5 {[%clk 0:02:19.1]} 24. Rc1 {[%clk 0:01:55.9]} 24... Rxb4
{[%clk 0:02:16.2]} 25. Rxb4 {[%clk 0:01:52.6]} 25... cxb4 {[%clk 0:02:17.1]} 26.
Rxc7+ {[%clk 0:01:49.5]} 26... Re7 {[%clk 0:02:17.6]} 27. Rc2 {[%clk 0:01:44.5]}
27... Rb7 {[%clk 0:02:15.9]} 28. Rb2 {[%clk 0:01:45.4]} 28... Ke6 {[%clk
0:02:16.1]} 29. Ke2 {[%clk 0:01:40.8]} 29... Kd5 {[%clk 0:02:16.4]} 30. Kd3
{[%clk 0:01:40.9]} 30... b3 {[%clk 0:02:16.9]} 31. f3 {[%clk 0:01:35.9]} 31...
Rb8 {[%clk 0:02:15.4]} 32. Kc3 {[%clk 0:01:32.9]} 32... Kc5 {[%clk 0:02:13.6]}
33. h4 {[%clk 0:01:21.6]} 33... h5 {[%clk 0:02:09.4]} 34. f4 {[%clk 0:01:02.4]}
34... Rb7 {[%clk 0:02:08.3]} 35. Kd3 {[%clk 0:00:55.2]} 35... Kb4 {[%clk
0:02:07.3]} 36. Kd4 {[%clk 0:00:51.5]} 36... Rd7+ {[%clk 0:02:06.5]} 37. Ke5
{[%clk 0:00:50.7]} 37... Kc3 {[%clk 0:02:07.4]} 38. Rg2 {[%clk 0:00:47.5]} 38...
b2 {[%clk 0:02:06.5]} 0-1

[Event "Late-Titled-Tuesday-Blitz-September-19-2023"]
[Site "Chess.com"]
[Date "2023.09.19"]
[Round "7"]
[White "Rital44"]
[Black "KamlaPasand"]
[Result "1-0"]
[WhiteElo "2570"]
[BlackElo "2452"]
[TimeControl "180+1"]
[EndTime "15:13:21 PDT"]
[Termination "Rital44 won by resignation"]

1. d4 {[%clk 0:03:00.9]} 1... d6 {[%clk 0:02:29.2]} 2. Bg5 {[%clk 0:02:59.4]}
2... Nf6 {[%clk 0:02:30.1]} 3. Nc3 {[%clk 0:02:58.9]} 3... g6 {[%clk 0:02:30.3]}
4. h4 {[%clk 0:02:58.4]} 4... Bg7 {[%clk 0:02:30.4]} 5. e4 {[%clk 0:02:53.1]}
5... h6 {[%clk 0:02:25.5]} 6. Bf4 {[%clk 0:02:52.7]} 6... O-O {[%clk 0:02:22]}
7. Qd2 {[%clk 0:02:51.5]} 7... Kh7 {[%clk 0:02:20.4]} 8. O-O-O {[%clk
0:02:49.2]} 8... Nc6 {[%clk 0:02:18]} 9. d5 {[%clk 0:02:48.2]} 9... Ne5 {[%clk
0:02:18.1]} 10. Nf3 {[%clk 0:02:45.7]} 10... Nxf3 {[%clk 0:02:18]} 11. gxf3
{[%clk 0:02:46]} 11... e6 {[%clk 0:02:17.5]} 12. Bd3 {[%clk 0:02:41.9]} 12...
Nh5 {[%clk 0:02:05]} 13. Be3 {[%clk 0:02:38.2]} 13... e5 {[%clk 0:02:04.3]} 14.
Kb1 {[%clk 0:02:38.1]} 14... c5 {[%clk 0:02:02.6]} 15. dxc6 {[%clk 0:02:36.4]}
15... bxc6 {[%clk 0:02:03.5]} 16. Bc4 {[%clk 0:02:35.1]} 16... Be6 {[%clk
0:01:59.5]} 17. Bxe6 {[%clk 0:02:32.9]} 17... fxe6 {[%clk 0:02:00]} 18. Qxd6
{[%clk 0:02:33.3]} 18... Qe8 {[%clk 0:01:55.7]} 19. Qd7 {[%clk 0:02:18.9]} 19...
Rxf3 {[%clk 0:01:54.7]} 20. Qxe8 {[%clk 0:02:15.7]} 20... Rxe8 {[%clk
0:01:55.2]} 21. Bxa7 {[%clk 0:02:05.9]} 21... Nf6 {[%clk 0:01:52.9]} 22. Rd3
{[%clk 0:01:49.9]} 22... Rf4 {[%clk 0:01:50.4]} 23. f3 {[%clk 0:01:44.8]} 23...
Nh5 {[%clk 0:01:44.3]} 24. a4 {[%clk 0:01:35.3]} 24... Ng3 {[%clk 0:01:43.4]}
25. Rh3 {[%clk 0:01:32]} 25... Nh5 {[%clk 0:01:43]} 26. a5 {[%clk 0:01:31.3]}
26... Bf6 {[%clk 0:01:42.5]} 27. Bc5 {[%clk 0:01:26.5]} 27... Bxh4 {[%clk
0:01:37.3]} 28. Ne2 {[%clk 0:01:16]} 28... Be7 {[%clk 0:01:32.6]} 29. Nxf4
{[%clk 0:00:39.4]} 29... Nxf4 {[%clk 0:01:32]} 30. Rd7 {[%clk 0:00:40]} 30...
Nxh3 {[%clk 0:01:30.8]} 31. Rxe7+ {[%clk 0:00:36.5]} 31... Rxe7 {[%clk 0:01:31]}
32. Bxe7 {[%clk 0:00:37.4]} 32... Ng1 {[%clk 0:01:21.1]} 33. a6 {[%clk
0:00:37.2]} 33... Nxf3 {[%clk 0:01:21.8]} 34. a7 {[%clk 0:00:37.5]} 34... Nd2+
{[%clk 0:01:22.2]} 1-0

[Event "Late-Titled-Tuesday-Blitz-September-19-2023"]
[Site "Chess.com"]
[Date "2023.09.19"]
[Round "7"]
[White "Nf3c5"]
[Black "Taran2004"]
[Result "1-0"]
[WhiteElo "2545"]
[BlackElo "2431"]
[TimeControl "180+1"]
[EndTime "15:13:26 PDT"]
[Termination "Nf3c5 won by resignation"]

1. d4 {[%clk 0:03:00.9]} 1... Nf6 {[%clk 0:02:59]} 2. Nf3 {[%clk 0:02:59.8]}
2... g6 {[%clk 0:02:58.5]} 3. Bg5 {[%clk 0:02:59.9]} 3... Bg7 {[%clk 0:02:58.8]}
4. Nbd2 {[%clk 0:03:00.5]} 4... d5 {[%clk 0:02:58.8]} 5. e3 {[%clk 0:02:59.5]}
5... O-O {[%clk 0:02:58.3]} 6. Be2 {[%clk 0:02:57]} 6... c5 {[%clk 0:02:57.7]}
7. dxc5 {[%clk 0:02:55.7]} 7... Qa5 {[%clk 0:02:55.8]} 8. O-O {[%clk 0:02:48.7]}
8... Qxc5 {[%clk 0:02:55.5]} 9. c4 {[%clk 0:02:31.5]} 9... dxc4 {[%clk 0:02:34]}
10. Bxc4 {[%clk 0:02:22.7]} 10... Bg4 {[%clk 0:02:32.5]} 11. Rc1 {[%clk
0:02:22.5]} 11... Qa5 {[%clk 0:02:24.1]} 12. Qb3 {[%clk 0:02:18.5]} 12... Qb6
{[%clk 0:02:08.8]} 13. Ne5 {[%clk 0:01:44]} 13... Qxb3 {[%clk 0:01:52]} 14. Nxb3
{[%clk 0:01:41.6]} 14... Bf5 {[%clk 0:01:41.5]} 15. Na5 {[%clk 0:01:31.9]} 15...
b6 {[%clk 0:01:37.8]} 16. Nb3 {[%clk 0:01:09.3]} 16... Nbd7 {[%clk 0:01:23.5]}
17. Nc6 {[%clk 0:01:08]} 17... Rfe8 {[%clk 0:01:16.2]} 18. Nbd4 {[%clk 0:01:06]}
18... Be4 {[%clk 0:01:05]} 19. f3 {[%clk 0:00:57.7]} 19... Bd5 {[%clk
0:01:04.8]} 20. Bxd5 {[%clk 0:00:43.3]} 20... Nxd5 {[%clk 0:01:05.7]} 21. e4
{[%clk 0:00:42.9]} 21... N5f6 {[%clk 0:01:04.7]} 22. Nb5 {[%clk 0:00:42.4]}
22... Rac8 {[%clk 0:00:50.3]} 23. Nxe7+ {[%clk 0:00:41.6]} 23... Rxe7 {[%clk
0:00:46.8]} 24. Rxc8+ {[%clk 0:00:42.2]} 24... Re8 {[%clk 0:00:47.4]} 25. Rfc1
{[%clk 0:00:41.8]} 1-0

[Event "Late-Titled-Tuesday-Blitz-September-19-2023"]
[Site "Chess.com"]
[Date "2023.09.19"]
[Round "7"]
[White "Road2GM3000"]
[Black "AlexandraBotez"]
[Result "1-0"]
[WhiteElo "2486"]
[BlackElo "2300"]
[TimeControl "180+1"]
[EndTime "15:13:33 PDT"]
[Termination "Road2GM3000 won by resignation"]

1. d4 {[%clk 0:03:00.9]} 1... c5 {[%clk 0:02:55.4]} 2. d5 {[%clk 0:03:01.1]}
2... d6 {[%clk 0:02:55.7]} 3. c4 {[%clk 0:03:01.7]} 3... g6 {[%clk 0:02:54.8]}
4. Nc3 {[%clk 0:03:02]} 4... Bg7 {[%clk 0:02:51.4]} 5. e4 {[%clk 0:03:02.2]}
5... Nd7 {[%clk 0:02:50]} 6. Bd3 {[%clk 0:03:02.6]} 6... Ne5 {[%clk 0:02:48.4]}
7. Be2 {[%clk 0:02:59]} 7... Nf6 {[%clk 0:02:31.9]} 8. f4 {[%clk 0:02:58.8]}
8... Ned7 {[%clk 0:02:32.1]} 9. Nf3 {[%clk 0:02:58.9]} 9... O-O {[%clk
0:02:22.6]} 10. O-O {[%clk 0:02:58.9]} 10... a6 {[%clk 0:02:20.9]} 11. a4 {[%clk
0:02:58.5]} 11... Qc7 {[%clk 0:02:08.7]} 12. Bd3 {[%clk 0:02:58.5]} 12... e6
{[%clk 0:02:02.1]} 13. f5 {[%clk 0:02:57.9]} 13... exf5 {[%clk 0:02:00.5]} 14.
exf5 {[%clk 0:02:58.2]} 14... Ne5 {[%clk 0:01:56.9]} 15. Nxe5 {[%clk 0:02:58.2]}
15... dxe5 {[%clk 0:01:57.3]} 16. Bg5 {[%clk 0:02:57]} 16... Bd7 {[%clk
0:01:40.6]} 17. Bxf6 {[%clk 0:02:44.3]} 17... Bxf6 {[%clk 0:01:40.2]} 18. Ne4
{[%clk 0:02:45]} 18... Bg7 {[%clk 0:01:29.3]} 19. f6 {[%clk 0:02:45.2]} 19...
Bh6 {[%clk 0:01:24.3]} 20. Qe1 {[%clk 0:02:40.5]} 20... Bf5 {[%clk 0:01:20.8]}
21. Rxf5 {[%clk 0:02:09.2]} 21... gxf5 {[%clk 0:01:14.6]} 22. Qh4 {[%clk
0:01:58.7]} 22... Be3+ {[%clk 0:01:11]} 23. Nf2 {[%clk 0:01:51.9]} 23... h6
{[%clk 0:00:36.1]} 24. Qg3+ {[%clk 0:01:26.3]} 24... Bg5 {[%clk 0:00:35.7]} 25.
h4 {[%clk 0:01:27]} 25... Kh8 {[%clk 0:00:36]} 26. hxg5 {[%clk 0:01:25.3]} 26...
Rg8 {[%clk 0:00:32.8]} 27. Qh4 {[%clk 0:01:21.9]} 27... Rg6 {[%clk 0:00:19.7]}
28. Bxf5 {[%clk 0:01:21.9]} 28... Kg8 {[%clk 0:00:15.1]} 29. Bxg6 {[%clk
0:01:21.4]} 29... fxg6 {[%clk 0:00:15.5]} 30. Qxh6 {[%clk 0:01:20.5]} 30... Qh7
{[%clk 0:00:15.5]} 31. Qxh7+ {[%clk 0:01:20]} 31... Kxh7 {[%clk 0:00:16.4]} 32.
Ng4 {[%clk 0:01:19.5]} 32... e4 {[%clk 0:00:15.1]} 33. Re1 {[%clk 0:01:19.9]}
1-0